[Event "17th Spilimbergo Open 2019"]
[Site "Spilimbergo"]
[Date "2019.08.10"]
[Round "3.1"]
[White "Kovalev, Vladislav"]
[Black "Ravi, Teja S."]
[Result "1-0"]
[WhiteElo "2651"]
[BlackElo "2420"]
[PlyCount "149"]
[EventDate "2019.08.09"]
[EventType "swiss"]
[EventCountry "ITA"]
[TimeControl "5400+30"]
[WhiteClock "0:10:09"]
[BlackClock "0:02:33"]

1. e4 {[%emt 0:00:30]} c6 {[%emt 0:00:30]} 2. d4 {[%emt 0:05:30]} d5 {[%emt 0:00:30]} 3. exd5 {[%emt 0:00:30]} cxd5 {[%emt 0:00:00]} 4. Bd3 {[%emt 0:00:00]} Nc6 {[%emt 0:03:00]} 5. c3 {[%emt 0:00:00]} Nf6 {[%emt 0:00:00]} 6. Ne2 {[%emt 0:00:30]} g6 {[%emt 0:06:00]} 7. O-O {[%emt 0:01:30]} Bg7 {[%emt 0:01:30]} 8. Nf4 {[%emt 0:04:30]} O-O {[%emt 0:00:30]} 9. Re1 {[%emt 0:00:30]} Bg4 {[%emt 0:05:30]} 10. Qb3 {[%emt 0:02:30]} Na5 {[%emt 0:03:30]} 11. Qc2 {[%emt 0:02:30]} Rc8 {[%emt 0:01:30]} 12. h3 {[%emt 0:00:30]} Bd7 {[%emt 0:00:00]} 13. Nd2 {[%emt 0:02:30]} Re8 {[%emt 0:07:00]} 14. Nf3 {[%emt 0:02:30]} Qb6 {[%emt 0:00:30]} 15. Qe2 {[%emt 0:05:30]} a6 {[%emt 0:03:30]} 16. Ne5 {[%emt 0:11:30]} Bb5 {[%emt 0:01:30]} 17. Bxb5 {[%emt 0:01:30]} Qxb5 {[%emt 0:02:30]} 18. Qxb5 {[%emt 0:00:00]} axb5 {[%emt 0:00:00]} 19. Nfd3 {[%emt 0:00:00]} Nc4 {[%emt 0:01:00]} 20. f3 {[%emt 0:03:30]} e6 {[%emt 0:01:30]} 21. Re2 {[%emt 0:00:30]} Ra8 {[%emt 0:05:30]} 22. a3 {[%emt 0:01:30]} Rec8 {[%emt 0:01:30]} 23. Ng4 {[%emt 0:01:30]} Nd7 {[%emt 0:04:30]} 24. Nh6+ {[%emt 0:05:30]} Kf8 {[%emt 0:00:30]} 25. Bf4 {[%emt 0:00:30]} Bf6 {[%emt 0:09:30]} 26. Rae1 {[%emt 0:07:30]} Kg7 {[%emt 0:01:30]} 27. Ng4 {[%emt 0:00:30]} Bh4 {[%emt 0:00:30]} 28. g3 {[%emt 0:00:30]} Be7 {[%emt 0:00:30]} 29. Bh6+ {[%emt 0:00:30]} Kg8 {[%emt 0:00:30]} 30. h4 {[%emt 0:00:30]} Nd6 {[%emt 0:01:30]} 31. Bg5 {[%emt 0:02:30]} Bxg5 {[%emt 0:03:30]} 32. hxg5 {[%emt 0:00:30]} Nf5 {[%emt 0:00:30]} 33. Kf2 {[%emt 0:07:30]} Kg7 {[%emt 0:00:00]} 34. Rh1 {[%emt 0:00:00]} Rh8 {[%emt 0:00:00]} 35. Nh6 {[%emt 0:01:00]} Nxh6 {[%emt 0:02:30]} 36. Rxh6 {[%emt 0:00:30]} Rae8 {[%emt 0:03:30]} 37. f4 {[%emt 0:02:30]} f5 {[%emt 0:06:30]} 38. Ke1 {[%emt 0:05:30]} Re7 {[%emt 0:00:30]} 39. Reh2 {[%emt 0:02:30]} Nb6 {[%emt 0:01:30]} 40. Ne5 {[%emt 0:00:30]} Ree8 {[%emt 0:00:30]} 41. g4 {[%emt 0:07:29]} fxg4 {[%emt 0:01:30]} 42. Kf2 {[%emt 0:00:41]} g3+ {[%emt 0:01:30]} 43. Kxg3 {[%emt 0:00:08]} Nc4 {[%emt 0:01:30]} 44. Ng4 {[%emt 0:02:14]} Nd6 {[%emt 0:00:00]} 45. Kf3 {[%emt 0:00:48]} Ne4 {[%emt 0:03:00]} 46. Nf6 {[%emt 0:04:33]} Nd6 {[%emt 0:00:30]} 47. Ng4 {[%emt 0:00:30]} Ne4 {[%emt 0:00:30]} 48. Nf6 {[%emt 0:00:30]} Nxf6 {[%emt 0:01:21]} 49. gxf6+ {[%emt 0:00:30]} Kxf6 {[%emt 0:00:52]} 50. Rxh7 {[%emt 0:00:30]} Rxh7 {[%emt 0:00:43]} 51. Rxh7 {[%emt 0:00:30]} Re7 {[%emt 0:00:40]} 52. Rh8 {[%emt 0:00:30]} g5 {[%emt 0:03:46]} 53. Rh6+ {[%emt 0:03:45]} Kf5 {[%emt 0:00:04]} 54. Rh5 {[%emt 0:00:06]} Kg6 {[%emt 0:01:18]} 55. Rxg5+ {[%emt 0:00:11]} Kf6 {[%emt 0:00:01]} 56. Rh5 {[%emt 0:02:43]} Rg7 {[%emt 0:00:15]} 57. Rh8 {[%emt 0:00:20]} Ke7 {[%emt 0:01:50]} 58. Rc8 {[%emt 0:00:33]} Kd6 {[%emt 0:01:19]} 59. Rc5 {[%emt 0:00:10]} b4 {[%emt 0:00:10]} 60. axb4 {[%emt 0:01:19]} Rg1 {[%emt 0:00:44]} 61. b5 {[%emt 0:00:23]} Rb1 {[%emt 0:01:15]} 62. b4 {[%emt 0:00:05]} Rf1+ {[%emt 0:00:16]} 63. Ke3 {[%emt 0:00:06]} Re1+ {[%emt 0:00:27]} 64. Kf2 {[%emt 0:00:38]} Ra1 {[%emt 0:00:28]} 65. Ke2 {[%emt 0:00:07]} Ra3 {[%emt 0:01:09]} 66. Kd3 {[%emt 0:00:28]} Ra2 {[%emt 0:00:44]} 67. Rc8 {[%emt 0:00:27]} Rf2 {[%emt 0:00:18]} 68. Rf8 {[%emt 0:00:35]} Kc7 {[%emt 0:00:53]} 69. Rf6 {[%emt 0:01:39]} Kb6 {[%emt 0:00:18]} 70. c4 {[%emt 0:02:37]} dxc4+ {[%emt 0:00:59]} 71. Kxc4 {[%emt 0:00:36]} Kc7 {[%emt 0:00:30]} 72. b6+ {[%emt 0:00:33]} Kd7 {[%emt 0:00:30]} 73. Kc5 {[%emt 0:00:11]} Rc2+ {[%emt 0:01:03]} 74. Kb5 {[%emt 0:00:02]} Rc6 {[%emt 0:01:28]} 75. d5 1-0

[Event "17th Spilimbergo Open 2019"]
[Site "Spilimbergo"]
[Date "2019.08.10"]
[Round "3.2"]
[White "Aghayev, Miragha"]
[Black "Bosiocic, Marin"]
[Result "0-1"]
[WhiteElo "2413"]
[BlackElo "2611"]
[PlyCount "90"]
[EventDate "2019.08.09"]
[EventType "swiss"]
[EventCountry "ITA"]
[TimeControl "5400+30"]
[WhiteClock "0:15:45"]
[BlackClock "0:00:50"]

1. e4 {[%emt 0:00:30]} c5 {[%emt 0:00:30]} 2. Nc3 {[%emt 0:00:30]} d6 {[%emt 0:00:30]} 3. Bb5+ {[%emt 0:02:30]} Nd7 {[%emt 0:00:30]} 4. d4 {[%emt 0:00:30]} cxd4 {[%emt 0:04:30]} 5. Qxd4 {[%emt 0:00:30]} a6 {[%emt 0:01:30]} 6. Bxd7+ {[%emt 0:00:30]} Bxd7 {[%emt 0:00:30]} 7. Nge2 {[%emt 0:00:30]} Nf6 {[%emt 0:00:30]} 8. Bg5 {[%emt 0:03:30]} e6 {[%emt 0:03:30]} 9. O-O-O {[%emt 0:03:30]} Be7 {[%emt 0:02:30]} 10. f4 {[%emt 0:01:30]} Bc6 {[%emt 0:04:30]} 11. Bxf6 {[%emt 0:13:30]} gxf6 {[%emt 0:01:30]} 12. Qd3 {[%emt 0:04:30]} b5 {[%emt 0:04:30]} 13. Nd4 {[%emt 0:06:30]} Bd7 {[%emt 0:00:00]} 14. f5 {[%emt 0:00:30]} b4 {[%emt 0:03:00]} 15. fxe6 {[%emt 0:05:30]} fxe6 {[%emt 0:00:30]} 16. Nce2 {[%emt 0:02:30]} Qa5 {[%emt 0:00:00]} 17. Qb3 {[%emt 0:01:30]} Qe5 {[%emt 0:01:00]} 18. Nf3 {[%emt 0:03:30]} Qc5 {[%emt 0:00:30]} 19. Nf4 {[%emt 0:01:30]} Rc8 {[%emt 0:01:30]} 20. Nd3 {[%emt 0:08:30]} Qe3+ {[%emt 0:02:30]} 21. Nd2 {[%emt 0:03:30]} a5 {[%emt 0:00:30]} 22. Rhe1 {[%emt 0:01:30]} Qg5 {[%emt 0:00:30]} 23. Kb1 {[%emt 0:01:30]} Qxg2 {[%emt 0:03:30]} 24. Nf4 {[%emt 0:05:30]} Qg4 {[%emt 0:00:30]} 25. Rf1 {[%emt 0:00:30]} Rg8 {[%emt 0:29:30]} 26. h3 {[%emt 0:11:24]} Qg3 {[%emt 0:01:30]} 27. Rf3 {[%emt 0:00:14]} Qg5 {[%emt 0:00:30]} 28. e5 {[%emt 0:08:29]} Qxe5 {[%emt 0:03:30]} 29. Rff1 {[%emt 0:00:05]} a4 {[%emt 0:03:30]} 30. Qxb4 {[%emt 0:01:10]} d5 {[%emt 0:00:00]} 31. Qa5 {[%emt 0:00:33]} Rb8 {[%emt 0:03:00]} 32. Nd3 {[%emt 0:01:40]} Qd4 {[%emt 0:01:30]} 33. Nf3 {[%emt 0:02:33]} Qb6 {[%emt 0:00:30]} 34. Qc3 {[%emt 0:00:38]} Rg2 {[%emt 0:04:30]} 35. Rg1 {[%emt 0:00:50]} Rc8 {[%emt 0:00:30]} 36. Qxc8+ {[%emt 0:02:10]} Bxc8 {[%emt 0:00:30]} 37. Rxg2 {[%emt 0:00:02]} e5 {[%emt 0:00:30]} 38. Rg8+ {[%emt 0:00:32]} Bf8 {[%emt 0:00:00]} 39. Nfxe5 {[%emt 0:00:51]} Be6 {[%emt 0:01:00]} 40. Rh8 {[%emt 0:01:30]} fxe5 {[%emt 0:02:26]} 41. Rf1 {[%emt 0:00:19]} e4 {[%emt 0:00:05]} 42. Rhxf8+ {[%emt 0:00:59]} Ke7 {[%emt 0:00:11]} 43. Ne5 {[%emt 0:00:21]} a3 {[%emt 0:01:00]} 44. b3 {[%emt 0:01:33]} Qe3 {[%emt 0:03:03]} 45. Nc6+ {[%emt 0:01:17]} Kd6 0-1

[Event "17th Spilimbergo Open 2019"]
[Site "Spilimbergo"]
[Date "2019.08.10"]
[Round "3.4"]
[White "Dragnev, Valentin"]
[Black "Sardana, Rishi"]
[Result "1-0"]
[WhiteElo "2535"]
[BlackElo "2410"]
[PlyCount "87"]
[EventDate "2019.08.09"]
[EventType "swiss"]
[EventCountry "ITA"]
[TimeControl "5400+30"]
[WhiteClock "0:03:21"]
[BlackClock "0:04:23"]

1. Nf3 {[%emt 0:00:30]} Nf6 {[%emt 0:00:30]} 2. c4 {[%emt 0:00:30]} e6 {[%emt 0:00:00]} 3. g3 {[%emt 0:00:30]} d5 {[%emt 0:00:00]} 4. Bg2 {[%emt 0:00:30]} dxc4 {[%emt 0:00:30]} 5. Qa4+ {[%emt 0:00:00]} Bd7 {[%emt 0:00:00]} 6. Qxc4 {[%emt 0:00:00]} c5 {[%emt 0:00:00]} 7. Ne5 {[%emt 0:01:30]} Qc8 {[%emt 0:00:30]} 8. Qd3 {[%emt 0:00:00]} Nc6 {[%emt 0:00:30]} 9. Nxd7 {[%emt 0:00:00]} Nxd7 {[%emt 0:00:00]} 10. b3 {[%emt 0:02:30]} Be7 {[%emt 0:02:00]} 11. Nc3 {[%emt 0:00:30]} O-O {[%emt 0:00:30]} 12. Bb2 {[%emt 0:00:30]} Rd8 {[%emt 0:04:30]} 13. Rc1 {[%emt 0:00:30]} Bg5 {[%emt 0:12:30]} 14. Qb1 {[%emt 0:10:30]} Nf6 {[%emt 1:15:30]} 15. Qd3 {[%emt 0:19:30]} Nd7 {[%emt 0:00:30]} 16. Qb1 {[%emt 0:00:30]} Nf6 {[%emt 0:00:30]} 17. f4 {[%emt 0:00:30]} Bh6 {[%emt 0:00:00]} 18. Ne4 {[%emt 0:00:30]} Nxe4 {[%emt 0:00:00]} 19. Qxe4 {[%emt 0:00:30]} Qd7 {[%emt 0:00:00]} 20. d3 {[%emt 0:01:30]} Qd6 {[%emt 0:00:00]} 21. Ba3 {[%emt 0:05:30]} Nb4 {[%emt 0:00:00]} 22. Qxb7 {[%emt 0:24:30]} Rab8 {[%emt 0:00:00]} 23. Qe4 {[%emt 0:04:30]} Nxa2 {[%emt 0:00:00]} 24. Bxc5 {[%emt 0:00:30]} Qc7 {[%emt 0:00:00]} 25. Rc2 {[%emt 0:01:30]} Qa5+ {[%emt 0:00:00]} 26. Kf2 {[%emt 0:00:30]} Nb4 {[%emt 0:00:00]} 27. Rc4 {[%emt 0:01:30]} Nd5 {[%emt 0:00:00]} 28. b4 {[%emt 0:01:30]} Qa2 {[%emt 0:00:00]} 29. Qe5 {[%emt 0:01:30]} Qb3 {[%emt 0:00:00]} 30. Bxa7 {[%emt 0:03:17]} Ra8 {[%emt 0:00:00]} 31. Bc5 {[%emt 0:01:33]} Ra2 {[%emt 0:00:00]} 32. Bxd5 {[%emt 0:05:52]} exd5 {[%emt 0:00:00]} 33. Rc3 {[%emt 0:00:19]} Qa4 {[%emt 0:00:00]} 34. Re1 {[%emt 0:02:42]} Qa8 {[%emt 0:01:25]} 35. Bd4 {[%emt 0:02:40]} Qb7 {[%emt 0:02:09]} 36. Qc7 {[%emt 0:01:49]} Qa8 {[%emt 0:00:21]} 37. b5 {[%emt 0:01:16]} Re8 {[%emt 0:01:14]} 38. b6 {[%emt 0:01:23]} Qa4 {[%emt 0:00:07]} 39. Qc5 {[%emt 0:00:22]} g6 {[%emt 0:01:34]} 40. Qxd5 {[%emt 0:01:20]} Bf8 {[%emt 0:01:02]} 41. Rc7 {[%emt 0:00:42]} Re6 {[%emt 0:00:44]} 42. b7 {[%emt 0:00:35]} Qb4 {[%emt 0:01:27]} 43. Qxa2 {[%emt 0:00:47]} Qxd4+ {[%emt 0:00:06]} 44. e3 1-0

[Event "17th Spilimbergo Open 2019"]
[Site "Spilimbergo"]
[Date "2019.08.10"]
[Round "3.5"]
[White "Barp, Alberto"]
[Black "Henderson de La Fuente, Lance"]
[Result "1/2-1/2"]
[WhiteElo "2411"]
[BlackElo "2487"]
[PlyCount "52"]
[EventDate "2019.08.09"]
[EventType "swiss"]
[EventCountry "ITA"]
[TimeControl "5400+30"]
[WhiteClock "0:55:00"]
[BlackClock "0:32:00"]

1. d4 {[%emt 0:00:30]} Nf6 {[%emt 0:00:30]} 2. c4 {[%emt 0:00:00]} e6 {[%emt 0:00:30]} 3. Nf3 {[%emt 0:01:00]} b6 {[%emt 0:00:00]} 4. g3 {[%emt 0:00:00]} Ba6 {[%emt 0:00:00]} 5. b3 {[%emt 0:01:00]} Bb4+ {[%emt 0:00:30]} 6. Bd2 {[%emt 0:00:00]} Be7 {[%emt 0:00:30]} 7. Bg2 {[%emt 0:03:00]} c6 {[%emt 0:00:00]} 8. O-O {[%emt 0:00:30]} d5 {[%emt 0:00:00]} 9. Qc2 {[%emt 0:00:00]} Nbd7 {[%emt 0:00:30]} 10. Rd1 {[%emt 0:00:00]} O-O {[%emt 0:00:30]} 11. Bc1 {[%emt 0:00:30]} Rc8 {[%emt 0:01:30]} 12. Bb2 {[%emt 0:01:30]} c5 {[%emt 0:02:30]} 13. Nc3 {[%emt 0:00:30]} cxd4 {[%emt 0:16:30]} 14. Nxd4 {[%emt 0:00:30]} e5 {[%emt 0:00:30]} 15. Nf5 {[%emt 0:00:30]} d4 {[%emt 0:00:00]} 16. Ne4 {[%emt 0:09:30]} Nc5 {[%emt 0:03:00]} 17. Nxf6+ {[%emt 0:09:30]} Bxf6 {[%emt 0:00:30]} 18. f4 {[%emt 0:01:30]} exf4 {[%emt 0:04:30]} 19. gxf4 {[%emt 0:11:30]} Qc7 {[%emt 0:01:30]} 20. Bxd4 {[%emt 0:09:30]} Bxd4+ {[%emt 0:00:00]} 21. Nxd4 {[%emt 0:05:30]} Qxf4 {[%emt 0:00:00]} 22. Qd2 {[%emt 0:06:30]} Qc7 {[%emt 0:05:30]} 23. Nf5 {[%emt 0:04:30]} Rcd8 {[%emt 0:01:30]} 24. Qg5 {[%emt 0:01:30]} f6 {[%emt 0:06:30]} 25. Qg3 {[%emt 0:01:30]} Qxg3 {[%emt 0:00:30]} 26. hxg3 {[%emt 0:00:30]} Bc8 1/2-1/2

[Event "17th Spilimbergo Open 2019"]
[Site "Spilimbergo"]
[Date "2019.08.10"]
[Round "3.6"]
[White "Gschnitzer, Adrian"]
[Black "Petrov, Martin"]
[Result "1/2-1/2"]
[WhiteElo "2410"]
[BlackElo "2477"]
[PlyCount "73"]
[EventDate "2019.08.09"]
[EventType "swiss"]
[EventCountry "ITA"]
[TimeControl "5400+30"]
[WhiteClock "0:02:46"]
[BlackClock "0:55:00"]

1. c4 {[%emt 0:00:30]} c5 {[%emt 0:09:30]} 2. Nf3 {[%emt 0:00:00]} Nc6 {[%emt 0:00:30]} 3. d4 {[%emt 0:00:00]} cxd4 {[%emt 0:00:00]} 4. Nxd4 {[%emt 0:00:00]} Nf6 {[%emt 0:00:00]} 5. Nc3 {[%emt 0:00:00]} g6 {[%emt 0:01:30]} 6. e4 {[%emt 0:00:30]} d6 {[%emt 0:00:30]} 7. Be2 {[%emt 0:00:30]} Nxd4 {[%emt 0:00:30]} 8. Qxd4 {[%emt 0:00:00]} Bg7 {[%emt 0:00:30]} 9. Be3 {[%emt 0:00:00]} O-O {[%emt 0:00:00]} 10. Qd2 {[%emt 0:00:30]} a5 {[%emt 0:01:00]} 11. O-O {[%emt 0:01:30]} a4 {[%emt 0:00:30]} 12. Rad1 {[%emt 0:00:30]} Qa5 {[%emt 0:00:30]} 13. Bd4 {[%emt 0:00:30]} Be6 {[%emt 0:04:30]} 14. f4 {[%emt 0:00:30]} Rfc8 {[%emt 0:12:30]} 15. b3 {[%emt 0:00:30]} axb3 {[%emt 0:00:00]} 16. axb3 {[%emt 0:00:00]} Qb4 {[%emt 0:37:00]} 17. f5 {[%emt 0:00:00]} Bd7 {[%emt 0:00:00]} 18. Bxf6 {[%emt 0:00:30]} Bxf6 {[%emt 0:01:00]} 19. Nd5 {[%emt 0:00:30]} Qxd2 {[%emt 0:00:30]} 20. Nxf6+ {[%emt 0:02:30]} Kg7 {[%emt 0:05:30]} 21. Rxd2 {[%emt 0:00:00]} Kxf6 {[%emt 0:00:30]} 22. e5+ {[%emt 0:03:00]} Kxe5 {[%emt 0:00:30]} 23. fxg6 {[%emt 0:01:30]} hxg6 {[%emt 0:00:30]} 24. Rxf7 {[%emt 0:01:30]} Ra1+ {[%emt 0:05:36]} 25. Kf2 {[%emt 0:00:30]} Ke6 {[%emt 0:00:49]} 26. Rf4 {[%emt 0:02:30]} Ke5 {[%emt 0:07:17]} 27. Ke3 {[%emt 0:04:30]} Bc6 {[%emt 0:00:37]} 28. g3 {[%emt 0:03:30]} Ra3 {[%emt 0:05:55]} 29. Bg4 {[%emt 0:02:30]} Rca8 {[%emt 0:01:41]} 30. Re2 {[%emt 0:15:30]} d5 {[%emt 0:00:08]} 31. Kf2+ {[%emt 0:01:30]} Kd6 {[%emt 0:00:20]} 32. Re6+ {[%emt 0:00:30]} Kc7 {[%emt 0:00:57]} 33. Rxe7+ {[%emt 0:01:30]} Kb6 {[%emt 0:00:05]} 34. cxd5 {[%emt 0:01:30]} Bxd5 {[%emt 0:00:04]} 35. Rf6+ {[%emt 0:01:30]} Kc5 {[%emt 0:03:17]} 36. Bf3 {[%emt 0:02:30]} Rxb3 {[%emt 0:00:58]} 37. Bxd5 1/2-1/2

[Event "17th Spilimbergo Open 2019"]
[Site "Spilimbergo"]
[Date "2019.08.10"]
[Round "3.7"]
[White "Lodici, Lorenzo"]
[Black "Nikolovski, Nikola"]
[Result "0-1"]
[WhiteElo "2472"]
[BlackElo "2409"]
[PlyCount "68"]
[EventDate "2019.08.09"]
[EventType "swiss"]
[EventCountry "ITA"]
[TimeControl "5400+30"]
[WhiteClock "0:02:38"]
[BlackClock "0:27:00"]

1. d4 {[%emt 0:00:30]} e6 {[%emt 0:00:30]} 2. Nf3 {[%emt 0:00:00]} f5 {[%emt 0:00:30]} 3. g3 {[%emt 0:00:00]} Nf6 {[%emt 0:00:30]} 4. Bg2 {[%emt 0:00:00]} Be7 {[%emt 0:00:30]} 5. O-O {[%emt 0:00:00]} O-O {[%emt 0:00:00]} 6. c4 {[%emt 0:00:30]} d6 {[%emt 0:00:00]} 7. Nc3 {[%emt 0:00:00]} Ne4 {[%emt 0:01:30]} 8. Nxe4 {[%emt 0:00:00]} fxe4 {[%emt 0:00:30]} 9. Nd2 {[%emt 0:00:30]} d5 {[%emt 0:00:30]} 10. f3 {[%emt 0:00:00]} Nc6 {[%emt 0:05:30]} 11. fxe4 {[%emt 0:00:00]} Rxf1+ {[%emt 0:00:30]} 12. Nxf1 {[%emt 0:00:00]} dxc4 {[%emt 0:02:30]} 13. Be3 {[%emt 0:00:00]} b5 {[%emt 0:16:30]} 14. a4 {[%emt 0:00:30]} b4 {[%emt 0:06:30]} 15. e5 {[%emt 0:00:30]} Bd7 {[%emt 0:12:30]} 16. Nd2 {[%emt 0:20:30]} c3 {[%emt 0:15:30]} 17. bxc3 {[%emt 0:00:30]} bxc3 {[%emt 0:00:30]} 18. Ne4 {[%emt 0:00:30]} Bb4 {[%emt 0:01:30]} 19. Qd3 {[%emt 0:14:30]} Rb8 {[%emt 0:10:30]} 20. Ng5 {[%emt 0:09:30]} g6 {[%emt 0:00:30]} 21. d5 {[%emt 0:01:30]} Nxe5 {[%emt 0:02:30]} 22. Qd4 {[%emt 0:01:30]} c2 {[%emt 0:05:06]} 23. Rf1 {[%emt 0:06:30]} Bd6 {[%emt 0:06:40]} 24. dxe6 {[%emt 0:00:30]} Be8 {[%emt 0:03:17]} 25. Bd5 {[%emt 0:02:30]} Qe7 {[%emt 0:00:40]} 26. Nf7 {[%emt 0:02:30]} Rb1 {[%emt 0:01:23]} 27. Nxe5 {[%emt 0:01:30]} Bc5 {[%emt 0:00:40]} 28. Qc3 {[%emt 0:09:30]} Bxe3+ {[%emt 0:02:22]} 29. Qxe3 {[%emt 0:00:30]} Qd6 {[%emt 0:01:57]} 30. Bb3 {[%emt 0:02:30]} Qb6 {[%emt 0:01:05]} 31. Qxb6 {[%emt 0:01:30]} Rxf1+ {[%emt 0:00:13]} 32. Kg2 {[%emt 0:00:30]} axb6 {[%emt 0:00:38]} 33. Bxc2 {[%emt 0:00:00]} Rc1 {[%emt 0:00:21]} 34. Bb3 {[%emt 0:01:00]} Kf8 0-1

[Event "17th Spilimbergo Open 2019"]
[Site "Spilimbergo"]
[Date "2019.08.10"]
[Round "3.8"]
[White "Sonis, Francesco"]
[Black "Kumar, Nikhil"]
[Result "1-0"]
[WhiteElo "2459"]
[BlackElo "2272"]
[PlyCount "97"]
[EventDate "2019.08.09"]
[EventType "swiss"]
[EventCountry "ITA"]
[TimeControl "5400+30"]
[WhiteClock "0:27:00"]
[BlackClock "0:15:25"]

1. c4 {[%emt 0:00:30]} e6 {[%emt 0:00:30]} 2. Nc3 {[%emt 0:00:00]} d5 {[%emt 0:00:30]} 3. d4 {[%emt 0:00:00]} Nf6 {[%emt 0:00:30]} 4. cxd5 {[%emt 0:00:00]} Nxd5 {[%emt 0:00:30]} 5. e4 {[%emt 0:00:00]} Nxc3 {[%emt 0:00:30]} 6. bxc3 {[%emt 0:00:30]} c5 {[%emt 0:00:30]} 7. Nf3 {[%emt 0:00:30]} cxd4 {[%emt 0:00:00]} 8. cxd4 {[%emt 0:00:30]} Bb4+ {[%emt 0:00:00]} 9. Bd2 {[%emt 0:00:30]} Bxd2+ {[%emt 0:00:30]} 10. Qxd2 {[%emt 0:00:00]} O-O {[%emt 0:00:00]} 11. Bc4 {[%emt 0:00:00]} Nd7 {[%emt 0:00:00]} 12. O-O {[%emt 0:00:00]} b6 {[%emt 0:00:30]} 13. Rfe1 {[%emt 0:03:00]} Bb7 {[%emt 0:00:00]} 14. h3 {[%emt 0:00:30]} h6 {[%emt 0:01:00]} 15. Re3 {[%emt 0:02:30]} Rc8 {[%emt 0:00:30]} 16. Bb3 {[%emt 0:02:30]} Re8 {[%emt 0:03:30]} 17. Rd1 {[%emt 0:01:30]} Nf6 {[%emt 0:05:30]} 18. Qe2 {[%emt 0:03:30]} Qe7 {[%emt 0:01:30]} 19. Ne5 {[%emt 0:05:30]} Red8 {[%emt 0:00:30]} 20. f4 {[%emt 0:11:30]} Qb4 {[%emt 0:13:30]} 21. a3 {[%emt 0:15:30]} Qa5 {[%emt 0:10:30]} 22. Nxf7 {[%emt 0:22:30]} Kxf7 {[%emt 0:01:30]} 23. f5 {[%emt 0:01:30]} Kg8 {[%emt 0:05:30]} 24. Bxe6+ {[%emt 0:03:30]} Kh8 {[%emt 0:00:00]} 25. e5 {[%emt 0:02:30]} Nd5 {[%emt 0:01:00]} 26. Rg3 {[%emt 0:01:30]} Nf4 {[%emt 0:05:30]} 27. Qg4 {[%emt 0:00:30]} Nxe6 {[%emt 0:00:30]} 28. fxe6 {[%emt 0:00:00]} Rg8 {[%emt 0:00:30]} 29. e7 {[%emt 0:04:05]} Rce8 {[%emt 0:06:30]} 30. Qh4 {[%emt 0:03:16]} Qd5 {[%emt 0:00:30]} 31. Rf1 {[%emt 0:00:12]} Qe6 {[%emt 0:01:30]} 32. Rf6 {[%emt 0:00:12]} Qxe7 {[%emt 0:00:30]} 33. Rgg6 {[%emt 0:00:02]} Bd5 {[%emt 0:13:30]} 34. Rxh6+ {[%emt 0:00:00]} gxh6 {[%emt 0:00:30]} 35. Rxh6+ {[%emt 0:01:35]} Kg7 {[%emt 0:02:30]} 36. Rh7+ {[%emt 0:02:43]} Kf8 {[%emt 0:00:30]} 37. Qf4+ {[%emt 0:00:30]} Qf7 {[%emt 0:00:30]} 38. Rxf7+ {[%emt 0:00:30]} Bxf7 {[%emt 0:00:30]} 39. d5 {[%emt 0:00:30]} Rg7 {[%emt 0:00:30]} 40. e6 {[%emt 0:00:30]} Kg8 {[%emt 0:00:30]} 41. exf7+ {[%emt 0:00:30]} Rxf7 {[%emt 0:00:30]} 42. Qh4 {[%emt 0:00:30]} Ree7 {[%emt 0:00:30]} 43. d6 {[%emt 0:00:30]} Rd7 {[%emt 0:00:30]} 44. Qh6 {[%emt 0:00:30]} Rg7 {[%emt 0:00:30]} 45. Qe6+ {[%emt 0:00:30]} Kh7 46. h4 Rd8 47. h5 Rdg8 48. Qe4+ Kh8 49. h6 1-0

[Event "17th Spilimbergo Open 2019"]
[Site "Spilimbergo"]
[Date "2019.08.10"]
[Round "3.9"]
[White "Percivaldi, Martin"]
[Black "Ankit, R. Rajpara"]
[Result "1/2-1/2"]
[WhiteElo "2391"]
[BlackElo "2454"]
[PlyCount "27"]
[EventDate "2019.08.09"]
[EventType "swiss"]
[EventCountry "ITA"]
[TimeControl "5400+30"]
[WhiteClock "1:01:00"]
[BlackClock "1:15:00"]

1. Nf3 {[%emt 0:00:30]} Nf6 {[%emt 0:03:30]} 2. g3 {[%emt 0:00:00]} d5 {[%emt 0:00:30]} 3. Bg2 {[%emt 0:00:00]} e6 {[%emt 0:00:30]} 4. O-O {[%emt 0:01:30]} Be7 {[%emt 0:01:30]} 5. d3 {[%emt 0:00:00]} b6 {[%emt 0:01:30]} 6. Nbd2 {[%emt 0:02:00]} Bb7 {[%emt 0:00:30]} 7. c4 {[%emt 0:05:30]} O-O {[%emt 0:04:30]} 8. b3 {[%emt 0:01:30]} c5 {[%emt 0:06:30]} 9. Bb2 {[%emt 0:00:30]} d4 {[%emt 0:02:30]} 10. b4 {[%emt 0:01:30]} Qc7 {[%emt 0:04:30]} 11. b5 {[%emt 0:02:30]} e5 {[%emt 0:05:30]} 12. Qc2 {[%emt 0:02:30]} Nbd7 {[%emt 0:02:30]} 13. a4 {[%emt 0:03:30]} a5 {[%emt 0:01:30]} 14. e4 1/2-1/2

[Event "17th Spilimbergo Open 2019"]
[Site "Spilimbergo"]
[Date "2019.08.10"]
[Round "3.10"]
[White "Nisipeanu, Liviu-Dieter"]
[Black "Morozov, Nichita"]
[Result "1-0"]
[WhiteElo "2666"]
[BlackElo "2389"]
[PlyCount "59"]
[EventDate "2019.08.09"]
[EventType "swiss"]
[EventCountry "ITA"]
[TimeControl "5400+30"]
[WhiteClock "0:54:00"]
[BlackClock "0:43:00"]

1. e4 {[%emt 0:00:30]} e5 {[%emt 0:02:30]} 2. Nf3 {[%emt 0:00:30]} Nc6 {[%emt 0:00:30]} 3. Bb5 {[%emt 0:00:00]} a6 {[%emt 0:00:00]} 4. Ba4 {[%emt 0:00:00]} Nf6 {[%emt 0:00:00]} 5. O-O {[%emt 0:01:30]} Be7 {[%emt 0:00:30]} 6. d3 {[%emt 0:01:30]} b5 {[%emt 0:00:00]} 7. Bb3 {[%emt 0:00:30]} O-O {[%emt 0:01:00]} 8. Nc3 {[%emt 0:00:30]} Bb7 {[%emt 0:00:30]} 9. Bd2 {[%emt 0:02:30]} d6 {[%emt 0:05:30]} 10. a4 {[%emt 0:12:30]} Na5 {[%emt 0:14:30]} 11. Ba2 {[%emt 0:00:30]} b4 {[%emt 0:00:30]} 12. Ne2 {[%emt 0:00:30]} d5 {[%emt 0:02:30]} 13. exd5 {[%emt 0:08:30]} Bxd5 {[%emt 0:00:00]} 14. Bxd5 {[%emt 0:00:30]} Qxd5 {[%emt 0:00:00]} 15. Ng3 {[%emt 0:00:30]} Nc6 {[%emt 0:00:30]} 16. Bg5 {[%emt 0:08:30]} Nd7 {[%emt 0:12:30]} 17. Bxe7 {[%emt 0:02:30]} Nxe7 {[%emt 0:00:30]} 18. d4 {[%emt 0:01:30]} e4 {[%emt 0:02:30]} 19. Nxe4 {[%emt 0:01:30]} Qxe4 {[%emt 0:00:30]} 20. Re1 {[%emt 0:00:00]} Qd5 {[%emt 0:00:30]} 21. Rxe7 {[%emt 0:00:00]} Rad8 {[%emt 0:01:30]} 22. Qe2 {[%emt 0:04:30]} Nb8 {[%emt 0:03:30]} 23. Rxc7 {[%emt 0:04:30]} Nc6 {[%emt 0:00:00]} 24. c3 {[%emt 0:04:30]} Qd6 {[%emt 0:00:00]} 25. Rb7 {[%emt 0:00:00]} Rfe8 {[%emt 0:00:30]} 26. Qxa6 {[%emt 0:03:00]} bxc3 {[%emt 0:00:30]} 27. bxc3 {[%emt 0:00:00]} Nxd4 {[%emt 0:00:00]} 28. Qxd6 {[%emt 0:00:00]} Nxf3+ {[%emt 0:00:00]} 29. gxf3 {[%emt 0:00:30]} Rxd6 {[%emt 0:00:00]} 30. a5 1-0